fUST/lending_fUST_20240119
["ID","MTS","AMOUNT","RATE_DAILY","PERIOD"]
[312155552,1705672239942,-50000.0,0.00025036,2]
[312155553,1705672239951,-50000.0,0.00025036,2]
[312155554,1705672239962,-195.995406,0.00026396,2]
[312155555,1705672239972,-1425.90804487,0.000267,2]
[312155556,1705672239983,-1758.94143247,0.000267,2]
[312155557,1705672239993,-157.17801839,0.00027297,2]
[312155558,1705672240144,-7152.70538921,0.00027393,2]
[312155559,1705672240155,-873.86173983,0.00027395,2]
[312155560,1705672240165,-1589.24944099,0.00027395,2]
[312155561,1705672240176,-823.86653966,0.00027395,2]
[312155562,1705672240186,-332.25813429,0.00027395,5]
[312155563,1705672240197,-2813.43161407,0.00027395,2]
[312155564,1705672240207,-155.42257313,0.00027396,2]
[312155565,1705672240217,-2996.33579383,0.00027396,2]
[312155566,1705672240228,-200.04748732,0.00027396,2]
[312155567,1705672240238,-225.18151077,0.00027396,2]
[312155568,1705672240248,-500.0,0.00027396,2]
[312155570,1705672240258,-500.0,0.00027396,2]
[312155572,1705672240268,-500.0,0.00027396,2]
[312155573,1705672240278,-500.0,0.00027396,2]
[312155574,1705672240288,-500.0,0.00027396,2]
[312155575,1705672240298,-602.56999859,0.00027396,2]
[312155576,1705672240308,-489.3731108,0.00027396,2]
[312155578,1705672240317,-500.0,0.00027397,2]
[312155579,1705672240329,-500.0,0.00027397,2]
[312155580,1705672240338,-511.50830956,0.00027397,2]
[312155581,1705672240349,-500.0,0.00027397,2]
[312155582,1705672240359,-500.0,0.00027397,2]
[312155583,1705672240369,-507.36376259,0.00027397,2]
[312155585,1705672240379,-500.0,0.00027397,2]
[312155587,1705672240389,-500.0,0.00027397,2]
[312155589,1705672240399,-500.0,0.00027397,2]
[312155591,1705672240409,-500.0,0.00027397,2]
[312155593,1705672240419,-500.0,0.00027397,2]
[312155595,1705672240429,-500.0,0.00027397,2]
[312155596,1705672240438,-500.0,0.00027397,2]
[312155597,1705672240447,-500.0,0.00027397,2]
[312155598,1705672240457,-500.0,0.00027397,2]
[312155599,1705672240466,-500.0,0.00027397,2]
[312155600,1705672240476,-502.90873801,0.00027397,2]
[312155601,1705672240485,-500.0,0.00027397,2]
[312155602,1705672240495,-500.0,0.00027397,2]
[312155603,1705672240505,-500.0,0.00027397,2]
[312155604,1705672240514,-500.0,0.00027397,2]
[312155605,1705672240524,-500.0,0.00027397,2]
[312155606,1705672240533,-500.0,0.00027397,2]
[312155607,1705672240543,-262.40314308,0.00027397,2]
[312155609,1705672240552,-500.0,0.00027397,2]
[312155611,1705672240562,-500.0,0.00027397,2]
[312155613,1705672240572,-500.0,0.00027397,2]
[312155614,1705672240581,-500.0,0.00027397,2]
[312155615,1705672240592,-500.0,0.00027397,2]
[312155616,1705672240602,-500.0,0.00027397,2]
[312155617,1705672240611,-500.0,0.00027397,2]
[312155618,1705672240621,-343.60346579,0.00027397,2]
[312155620,1705672240631,-500.0,0.00027397,2]
[312155621,1705672240641,-500.0,0.00027397,2]
[312155622,1705672240651,-500.0,0.00027397,2]
[312155623,1705672240661,-500.0,0.00027397,2]
[312155624,1705672240673,-508.30920079,0.00027397,2]
[312155625,1705672240683,-502.30125866,0.00027397,2]
[312155626,1705672240693,-500.0,0.00027397,2]
[312155627,1705672240703,-584.47,0.00027397,2]
[312155628,1705672240713,-500.0,0.00027397,2]
[312155629,1705672240723,-572.75,0.00027397,2]
[312155630,1705672240733,-505.2,0.00027397,2]
[312155631,1705672240743,-500.0,0.00027397,2]
[312155632,1705672240754,-500.0,0.00027397,2]
[312155633,1705672240763,-507.9523761,0.00027397,2]
[312155634,1705672240773,-500.0,0.00027397,2]
[312155635,1705672240783,-500.0,0.00027397,2]
[312155636,1705672240793,-500.0,0.00027397,2]
[312155637,1705672240803,-522.38611687,0.00027397,2]
[312155638,1705672240813,-500.0,0.00027397,2]
[312155639,1705672240826,-500.0,0.00027397,2]
[312155640,1705672240835,-500.0,0.00027397,2]
[312155641,1705672240845,-500.0,0.00027397,2]
[312155642,1705672240855,-500.0,0.00027397,2]
[312155643,1705672240864,-500.0,0.00027397,2]
[312155644,1705672240873,-500.0,0.00027397,2]
[312155645,1705672240883,-500.0,0.00027397,2]
[312155646,1705672240893,-500.0,0.00027397,2]
[312155647,1705672240903,-664.86,0.00027397,2]
[312155648,1705672240913,-1273.41,0.00027397,2]
[312155649,1705672240922,-500.0,0.00027397,2]
[312155650,1705672240932,-500.0,0.00027397,2]
[312155651,1705672240942,-1576.3,0.00027397,2]
[312155652,1705672240952,-500.0,0.00027397,2]
[312155653,1705672240962,-500.0,0.00027397,2]
[312155654,1705672240972,-500.0,0.00027397,2]
[312155655,1705672240982,-500.0,0.00027397,2]
[312155656,1705672240991,-500.0,0.00027397,2]
[312155657,1705672241001,-500.0,0.00027397,2]
[312155658,1705672241011,-500.0,0.00027397,2]
[312155659,1705672241021,-500.0,0.00027397,2]
[312155660,1705672241031,-500.0,0.00027397,2]
[312155661,1705672241041,-500.0,0.00027397,2]
[312155662,1705672241051,-500.0,0.00027397,2]
[312155663,1705672241061,-500.0,0.00027397,2]
[312155664,1705672241071,-587.84,0.00027397,2]
[312155665,1705672241081,-500.0,0.00027397,2]
[312155666,1705672241091,-500.0,0.00027397,2]
[312155667,1705672241101,-719.64,0.00027397,2]
[312155668,1705672241114,-2444.78,0.00027397,2]
[312155669,1705672241124,-500.0,0.00027397,2]
[312155670,1705672241135,-500.0,0.00027397,2]
[312155671,1705672241144,-500.0,0.00027397,2]
[312155672,1705672241154,-500.0,0.00027397,2]
[312155673,1705672241164,-503.86239034,0.00027397,2]
[312155674,1705672241174,-3488.57,0.00027397,2]
[312155675,1705672241183,-500.0,0.00027397,2]
[312155676,1705672241193,-479.11039133,0.00027397,2]
[312155677,1705672241203,-500.0,0.00027397,2]
[312155678,1705672241213,-502.93,0.00027397,2]
[312155679,1705672241222,-187.93193822,0.00027397,2]
[312155680,1705672241232,-500.38761768,0.00027397,2]
[312155681,1705672241243,-500.0,0.00027397,2]
[312155682,1705672241252,-195.7337572,0.00027397,2]
[312155683,1705672241262,-1328.59,0.00027397,2]
[312155684,1705672241272,-500.0,0.00027397,2]
[312155685,1705672241282,-500.0,0.00027397,2]
[312155686,1705672241292,-500.0,0.00027397,2]
[312155687,1705672241302,-500.0,0.00027397,2]
[312155688,1705672241312,-261.51843576,0.00027397,2]
[312155689,1705672241322,-500.0,0.00027397,2]
[312155690,1705672241332,-506.29333055,0.00027397,2]
[312155691,1705672241342,-500.0,0.00027397,2]
[312155692,1705672241352,-500.0,0.00027397,2]
[312155693,1705672241362,-500.0,0.00027397,2]
[312155694,1705672241371,-500.0,0.00027397,2]
[312155695,1705672241381,-500.0,0.00027397,2]
[312155696,1705672241390,-500.0,0.00027397,2]
[312155697,1705672241400,-680.93,0.00027397,2]
[312155698,1705672241410,-206.29199228,0.00027397,2]
[312155699,1705672241420,-500.0,0.00027397,2]
[312155700,1705672241429,-500.0,0.00027397,2]
[312155701,1705672241440,-501.40007869,0.00027397,2]
[312155702,1705672241450,-500.0,0.00027397,2]
[312155703,1705672241459,-500.0,0.00027397,2]
[312155704,1705672241469,-500.0,0.00027397,2]
[312155705,1705672241479,-500.0,0.00027397,2]
[312155707,1705672241488,-423.73578706,0.00027397,2]
[312155708,1705672241498,-500.0,0.00027397,2]
[312155710,1705672241507,-500.0,0.00027397,2]
[312155712,1705672241517,-255.64911985,0.00027397,2]
[312155713,1705672241527,-1366.95,0.00027397,2]
[312155715,1705672241536,-500.0,0.00027397,2]
[312155716,1705672241546,-715.26,0.00027397,2]
[312155717,1705672241555,-505.9027438,0.00027397,2]
[312155718,1705672241566,-691.41,0.00027397,2]
[312155719,1705672241577,-14264.66,0.00027397,2]
[312155720,1705672241588,-500.67574723,0.00027397,2]
[312155721,1705672241597,-500.36498444,0.00027397,2]
[312155722,1705672241607,-500.0,0.00027397,2]
[312155723,1705672241617,-500.0,0.00027397,2]
[312155724,1705672241626,-579.13966273,0.00027397,2]
[312155725,1705672241636,-364.79966267,0.00027397,2]
[312155726,1705672241647,-465.35602054,0.00027397,2]
[312155727,1705672241657,-500.0,0.00027397,2]
[312155728,1705672241668,-500.0,0.00027397,2]
[312155729,1705672241678,-500.0,0.00027397,2]
[312155730,1705672241689,-500.0,0.00027397,2]
[312155731,1705672241699,-2715.88,0.00027397,2]
[312155732,1705672241709,-500.38185685,0.00027397,2]
[312155733,1705672241719,-500.0,0.00027397,2]
[312155734,1705672241730,-500.0,0.00027397,2]
[312155735,1705672241740,-500.0,0.00027397,2]
[312155736,1705672241751,-8042.06,0.00027397,2]
[312155737,1705672241761,-500.0,0.00027397,2]
[312155738,1705672241770,-500.0,0.00027397,2]
[312155739,1705672241780,-995.49,0.00027397,2]
[312155740,1705672241790,-500.0,0.00027397,2]
[312155741,1705672241799,-500.0,0.00027397,2]
[312155742,1705672241810,-500.0,0.00027397,2]
[312155743,1705672241819,-500.0,0.00027397,2]
[312155744,1705672241830,-500.0,0.00027397,2]
[312155745,1705672241839,-500.0,0.00027397,2]
[312155746,1705672241849,-500.0,0.00027397,2]
[312155747,1705672241858,-500.0,0.00027397,2]
[312155748,1705672241868,-500.0,0.00027397,2]
[312155749,1705672241877,-500.0,0.00027397,2]
[312155750,1705672241887,-512.34032242,0.00027397,2]
[312155751,1705672241896,-500.0,0.00027397,2]
[312155752,1705672241905,-500.0,0.00027397,2]
[312155753,1705672241914,-500.0,0.00027397,2]
[312155754,1705672241924,-2867.03,0.00027397,2]
[312155755,1705672241933,-500.0,0.00027397,2]
[312155756,1705672241943,-1359.53,0.00027397,2]
[312155757,1705672241953,-595.36085507,0.00027397,2]
[312155758,1705672241963,-973.5,0.00027397,2]
[312155759,1705672241973,-500.0,0.00027397,2]
[312155760,1705672241982,-833.35,0.00027397,2]
[312155761,1705672241992,-500.0,0.00027397,2]
[312155762,1705672242002,-500.0,0.00027397,2]
[312155763,1705672242011,-500.0,0.00027397,2]
[312155764,1705672242021,-500.0,0.00027397,2]
[312155765,1705672242030,-502.27871451,0.00027397,2]
[312155766,1705672242040,-532.72,0.00027397,2]
[312155767,1705672242049,-500.0,0.00027397,2]
[312155768,1705672242059,-4493.31,0.00027397,2]
[312155769,1705672242068,-500.0,0.00027397,2]
[312155770,1705672242078,-500.0,0.00027397,2]
[312155771,1705672242088,-356.98673676,0.00027397,2]
[312155772,1705672242097,-596.94,0.00027397,2]
[312155773,1705672242107,-500.0,0.00027397,2]
[312155774,1705672242117,-500.0,0.00027397,2]
[312155775,1705672242126,-817.63,0.00027397,2]
[312155776,1705672242135,-500.0,0.00027397,2]
[312155777,1705672242145,-500.0,0.00027397,2]
[312155778,1705672242155,-625.30196254,0.00027397,2]
[312155779,1705672242165,-547.15371215,0.00027397,2]
[312155780,1705672242175,-500.0,0.00027397,2]
[312155781,1705672242185,-500.0,0.00027397,2]
[312155782,1705672242194,-220.94293272,0.00027397,2]
[312155783,1705672242205,-500.0,0.00027397,2]
[312155784,1705672242216,-1022.07920832,0.000275,2]
[312155785,1705672242227,-500.0,0.0002767,2]
[312155786,1705672242237,-500.0,0.0002767,2]
[312155787,1705672242247,-500.0,0.0002767,2]
[312155788,1705672242257,-500.0,0.0002767,2]
[312155789,1705672242267,-500.0,0.0002767,2]
[312155790,1705672242276,-500.0,0.0002767,2]
[312155791,1705672242286,-500.0,0.00027671,2]
[312155792,1705672242296,-500.0,0.00027671,2]
[312155793,1705672242306,-492.00719133,0.00027671,2]
[312155794,1705672242315,-500.0,0.00027671,2]
[312155795,1705672242326,-343.19737047,0.00027671,2]
[312155796,1705672242335,-500.0,0.00027671,2]
[312155797,1705672242345,-500.0,0.00027671,2]
[312155798,1705672242355,-500.0,0.00027671,2]
[312155799,1705672242365,-500.0,0.00027671,2]
[312155800,1705672242453,-455.19,0.00027671,2]
[312155801,1705672242464,-500.0,0.00027671,2]
[312155802,1705672242474,-459.03306898,0.00027671,2]
[312155803,1705672242484,-586.29188756,0.00027671,2]
[312155804,1705672242494,-500.0,0.00027671,2]
[312155805,1705672242504,-513.7826788,0.00027671,2]
[312155806,1705672242514,-500.0,0.00027671,2]
[312155807,1705672242524,-566.02820619,0.00027671,2]
[312155808,1705672242534,-500.0,0.00027671,2]
[312155809,1705672242544,-508.32988203,0.00027671,2]
[312155810,1705672242554,-316.8243369,0.00027671,2]
[312155811,1705672242564,-584.47,0.00027671,2]
[312155812,1705672242573,-500.0,0.00027671,2]
[312155813,1705672242582,-572.75,0.00027671,2]
[312155814,1705672242592,-505.2,0.00027671,2]
[312155815,1705672242602,-500.0,0.00027671,2]
[312155816,1705672242612,-500.0,0.00027671,2]
[312155817,1705672242622,-500.0,0.00027671,2]
[312155818,1705672242632,-500.0,0.00027671,2]
[312155819,1705672242642,-500.0,0.00027671,2]
[312155821,1705672242655,-500.0,0.00027671,2]
[312155822,1705672242665,-511.35001389,0.00027671,2]
[312155823,1705672242675,-500.0,0.00027671,2]
[312155824,1705672242685,-500.0,0.00027671,2]
[312155825,1705672242695,-500.0,0.00027671,2]
[312155826,1705672242704,-500.0,0.00027671,2]
[312155827,1705672242715,-664.86,0.00027671,2]
[312155828,1705672242724,-1273.41,0.00027671,2]
[312155829,1705672242734,-500.0,0.00027671,2]
[312155830,1705672242745,-500.0,0.00027671,2]
[312155831,1705672242756,-1576.3,0.00027671,2]
[312155833,1705672242765,-534.91187577,0.00027671,2]
[312155834,1705672242775,-500.0,0.00027671,2]
[312155835,1705672242785,-500.0,0.00027671,2]
[312155836,1705672242794,-500.0,0.00027671,2]
[312155837,1705672242804,-500.0,0.00027671,2]
[312155838,1705672242813,-500.0,0.00027671,2]
[312155839,1705672242823,-506.1218786,0.00027671,2]
[312155840,1705672242833,-500.0,0.00027671,2]
[312155841,1705672242843,-500.0,0.00027671,2]
[312155842,1705672242853,-587.84,0.00027671,2]
[312155843,1705672242863,-500.0,0.00027671,2]
[312155844,1705672242872,-500.0,0.00027671,2]
[312155846,1705672242882,-719.64,0.00027671,2]
[312155848,1705672242892,-2444.78,0.00027671,2]
[312155851,1705672242902,-500.0,0.00027671,2]
[312155852,1705672242912,-500.0,0.00027671,2]
[312155853,1705672242921,-502.85906172,0.00027671,2]
[312155854,1705672242931,-500.0,0.00027671,2]
[312155855,1705672242941,-3488.57,0.00027671,2]
[312155857,1705672242951,-500.0,0.00027671,2]
[312155859,1705672242961,-500.0,0.00027671,2]
[312155860,1705672242970,-502.93,0.00027671,2]
[312155862,1705672242982,-500.0,0.00027671,2]
[312155863,1705672242992,-1328.59,0.00027671,2]
[312155864,1705672243002,-500.0,0.00027671,2]
[312155865,1705672243012,-500.0,0.00027671,2]
[312155866,1705672243022,-500.0,0.00027671,2]
[312155867,1705672243032,-500.0,0.00027671,2]
[312155868,1705672243043,-160.40654187,0.00027671,2]
[312155869,1705672243053,-680.93,0.00027671,2]
[312155870,1705672243063,-500.0,0.00027671,2]
[312155872,1705672243074,-500.0,0.00027671,2]
[312155873,1705672243084,-500.0,0.00027671,2]
[312155874,1705672243094,-500.0,0.00027671,2]
[312155875,1705672243104,-500.0,0.00027671,2]
[312155876,1705672243114,-500.0,0.00027671,2]
[312155877,1705672243124,-500.0,0.00027671,2]
[312155879,1705672243134,-1366.95,0.00027671,2]
[312155880,1705672243144,-500.0,0.00027671,2]
[312155882,1705672243155,-715.26,0.00027671,2]
[312155884,1705672243164,-691.41,0.00027671,2]
[312155886,1705672243174,-14264.66,0.00027671,2]
[312155887,1705672243184,-500.0,0.00027671,2]
[312155888,1705672243195,-500.0,0.00027671,2]
[312155889,1705672243205,-500.0,0.00027671,2]
[312155890,1705672243215,-500.0,0.00027671,2]
[312155891,1705672243226,-2715.88,0.00027671,2]
[312155892,1705672243236,-500.0,0.00027671,2]
[312155893,1705672243246,-500.0,0.00027671,2]
[312155894,1705672243257,-500.0,0.00027671,2]
[312155895,1705672243267,-8042.06,0.00027671,2]
[312155896,1705672243278,-500.0,0.00027671,2]
[312155897,1705672243288,-500.0,0.00027671,2]
[312155898,1705672243297,-995.49,0.00027671,2]
[312155899,1705672243307,-500.0,0.00027671,2]
[312155900,1705672243317,-514.26450996,0.00027671,2]
[312155901,1705672243327,-500.0,0.00027671,2]
[312155902,1705672243336,-500.0,0.00027671,2]
[312155903,1705672243346,-500.0,0.00027671,2]
[312155904,1705672243356,-500.0,0.00027671,2]
[312155905,1705672243367,-500.0,0.00027671,2]
[312155906,1705672243377,-500.0,0.00027671,2]
[312155907,1705672243386,-500.0,0.00027671,2]
[312155908,1705672243396,-500.0,0.00027671,2]
[312155909,1705672243407,-2867.03,0.00027671,2]
[312155910,1705672243417,-500.0,0.00027671,2]
[312155911,1705672243427,-1359.53,0.00027671,2]
[312155912,1705672243436,-973.5,0.00027671,2]
[312155913,1705672243446,-500.0,0.00027671,2]
[312155914,1705672243456,-833.35,0.00027671,2]
[312155915,1705672243467,-500.0,0.00027671,2]
[312155916,1705672243477,-505.94154697,0.00027671,2]
[312155917,1705672243487,-500.0,0.00027671,2]
[312155918,1705672243497,-532.72,0.00027671,2]
[312155919,1705672243507,-502.6959281,0.00027671,2]
[312155920,1705672243516,-4493.31,0.00027671,2]
[312155921,1705672243526,-500.0,0.00027671,2]
[312155922,1705672243536,-596.94,0.00027671,2]
[312155923,1705672243545,-500.91282911,0.00027671,2]
[312155924,1705672243555,-817.63,0.00027671,2]
[312155925,1705672243565,-630.94392972,0.00027671,2]
[312155926,1705672243575,-500.0,0.00027671,2]
[312155927,1705672243585,-500.0,0.00027671,2]
[312155928,1705672243595,-500.0,0.00027671,2]
[312155929,1705672243604,-500.0,0.00027671,2]
[312155930,1705672243615,-500.0,0.00027671,2]
[312155931,1705672243624,-155.0,0.000278,2]
[312155932,1705672243634,-500.0,0.00027944,2]
[312155933,1705672243645,-500.0,0.00027944,2]
[312155934,1705672243655,-500.0,0.00027944,2]
[312155935,1705672243665,-500.0,0.00027945,2]
[312155936,1705672243677,-500.0,0.00027945,2]
[312155937,1705672243687,-500.0,0.00027945,2]
[312155938,1705672243697,-584.47,0.00027945,2]
[312155939,1705672243708,-500.0,0.00027945,2]
[312155940,1705672243718,-572.75,0.00027945,2]
[312155941,1705672243728,-505.2,0.00027945,2]
[312155942,1705672243738,-500.0,0.00027945,2]
[312155943,1705672243747,-500.0,0.00027945,2]
[312155944,1705672243758,-500.0,0.00027945,2]
[312155945,1705672243769,-500.0,0.00027945,2]
[312155946,1705672243779,-500.0,0.00027945,2]
[312155947,1705672243789,-664.86,0.00027945,2]
[312155948,1705672243799,-1273.41,0.00027945,2]
[312155949,1705672243809,-500.0,0.00027945,2]
[312155950,1705672243819,-1576.3,0.00027945,2]
[312155951,1705672243829,-343.75193125,0.00027945,2]
[312155952,1705672243839,-500.0,0.00027945,2]
[312155953,1705672243848,-500.0,0.00027945,2]
[312155954,1705672243858,-500.0,0.00027945,2]
[312155955,1705672243868,-587.84,0.00027945,2]
[312155956,1705672243878,-500.0,0.00027945,2]
[312155957,1705672243889,-719.64,0.00027945,2]
[312155958,1705672243899,-2444.78,0.00027945,2]
[312155959,1705672243908,-500.0,0.00027945,2]
[312155960,1705672243918,-500.0,0.00027945,2]
[312155961,1705672243928,-500.0,0.00027945,2]
[312155962,1705672243938,-3488.57,0.00027945,2]
[312155963,1705672243948,-500.0,0.00027945,2]
[312155964,1705672243959,-502.93,0.00027945,2]
[312155965,1705672243969,-641.74758446,0.00027945,2]
[312155966,1705672243979,-1328.59,0.00027945,2]
[312155967,1705672243990,-186.61271067,0.00027945,2]
[312155968,1705672244000,-500.0,0.00027945,2]
[312155969,1705672244010,-680.93,0.00027945,2]
[312155970,1705672244020,-504.60443629,0.00027945,2]
[312155971,1705672244031,-401.7669085,0.00027945,2]
[312155972,1705672244041,-500.0,0.00027945,2]
[312155973,1705672244051,-450.11453394,0.00027945,2]
[312155974,1705672244061,-500.0,0.00027945,2]
[312155975,1705672244071,-264.40509235,0.00027945,2]
[312155976,1705672244082,-1366.95,0.00027945,2]
[312155977,1705672244092,-500.0,0.00027945,2]
[312155978,1705672244102,-715.26,0.00027945,2]
[312155979,1705672244113,-691.41,0.00027945,2]
[312155980,1705672244124,-14264.66,0.00027945,2]
[312155981,1705672244134,-500.0,0.00027945,2]
[312155982,1705672244145,-500.0,0.00027945,2]
[312155983,1705672244155,-500.0,0.00027945,2]
[312155984,1705672244166,-500.0,0.00027945,2]
[312155985,1705672244176,-2715.88,0.00027945,2]
[312155986,1705672244186,-503.50962741,0.00027945,2]
[312155987,1705672244196,-500.0,0.00027945,2]
[312155988,1705672244207,-8042.06,0.00027945,2]
[312155989,1705672244217,-995.49,0.00027945,2]
[312155990,1705672244227,-500.0,0.00027945,2]
[312155991,1705672244237,-500.0,0.00027945,2]
[312155992,1705672244247,-500.0,0.00027945,2]
[312155993,1705672244258,-500.0,0.00027945,2]
[312155994,1705672244268,-500.0,0.00027945,2]
[312155995,1705672244278,-500.0,0.00027945,2]
[312155996,1705672244287,-2867.03,0.00027945,2]
[312155997,1705672244297,-500.0,0.00027945,2]
[312155998,1705672244307,-1359.53,0.00027945,2]
[312155999,1705672244317,-973.5,0.00027945,2]
[312156000,1705672244328,-500.0,0.00027945,2]
[312156001,1705672244338,-833.35,0.00027945,2]
[312156002,1705672244348,-500.0,0.00027945,2]
[312156003,1705672244357,-500.0,0.00027945,2]
[312156004,1705672244367,-532.72,0.00027945,2]
[312156005,1705672244377,-4493.31,0.00027945,2]
[312156006,1705672244387,-596.94,0.00027945,2]
[312156007,1705672244397,-817.63,0.00027945,2]
[312156008,1705672244407,-500.0,0.00027945,2]
[312156009,1705672244417,-500.0,0.00027945,2]
[312156010,1705672244428,-305.51246618,0.00028,2]
[312156011,1705672244438,-290.08228321,0.00028,2]
[312156012,1705672244448,-154.84515485,0.00028,2]
[312156013,1705672244458,-154.84515485,0.00028,10]
[312156014,1705672244468,-500.0,0.00028218,2]
[312156015,1705672244477,-171.65,0.00028218,2]
[312156016,1705672244487,-519.7,0.00028218,2]
[312156017,1705672244497,-500.0,0.00028218,2]
[312156018,1705672244507,-500.0,0.00028219,2]
[312156019,1705672244517,-500.0,0.00028219,2]
[312156020,1705672244527,-584.47,0.00028219,2]
[312156021,1705672244537,-500.0,0.00028219,2]
[312156022,1705672244625,-572.75,0.00028219,2]
[312156023,1705672244636,-505.2,0.00028219,2]
[312156024,1705672244648,-500.0,0.00028219,2]
[312156025,1705672244658,-500.0,0.00028219,2]
[312156026,1705672244669,-500.0,0.00028219,2]
[312156027,1705672244680,-500.0,0.00028219,2]
[312156028,1705672244689,-500.0,0.00028219,2]
[312156029,1705672244699,-664.86,0.00028219,2]
[312156030,1705672244708,-1273.41,0.00028219,2]
[312156031,1705672244718,-167.3,0.00028219,2]
[312156032,1705672244729,-1576.3,0.00028219,2]
[312156033,1705672244739,-500.0,0.00028219,2]
[312156034,1705672244750,-500.0,0.00028219,2]
[312156035,1705672244762,-500.0,0.00028219,2]
[312156036,1705672244771,-587.84,0.00028219,2]
[312156037,1705672244782,-500.0,0.00028219,2]
[312156038,1705672244792,-719.64,0.00028219,2]
[312156039,1705672244802,-2444.78,0.00028219,2]
[312156040,1705672244812,-204.46320999,0.00028219,2]
[312156041,1705672244823,-500.0,0.00028219,2]
[312156042,1705672244836,-500.0,0.00028219,2]
[312156043,1705672244846,-3488.57,0.00028219,2]
[312156044,1705672244856,-500.0,0.00028219,2]
[312156045,1705672244866,-502.93,0.00028219,2]
[312156046,1705672244877,-1328.59,0.00028219,2]
[312156047,1705672244887,-500.0,0.00028219,2]
[312156048,1705672244897,-680.93,0.00028219,2]
[312156049,1705672244907,-500.0,0.00028219,2]
[312156050,1705672244917,-1366.95,0.00028219,2]
[312156051,1705672244927,-500.0,0.00028219,2]
[312156052,1705672244937,-715.26,0.00028219,2]
[312156053,1705672244947,-691.41,0.00028219,2]
[312156054,1705672244957,-14264.66,0.00028219,2]
[312156055,1705672244967,-427.33355453,0.00028219,2]
[312156056,1705672244977,-500.0,0.00028219,2]
[312156057,1705672244987,-500.0,0.00028219,2]
[312156058,1705672244997,-424.76,0.00028219,2]
[312156059,1705672245008,-2715.88,0.00028219,2]
[312156060,1705672245018,-8042.06,0.00028219,2]
[312156061,1705672245029,-995.49,0.00028219,2]
[312156062,1705672245039,-500.0,0.00028219,2]
[312156063,1705672245049,-500.0,0.00028219,2]
[312156064,1705672245059,-500.0,0.00028219,2]
[312156065,1705672245070,-503.81106822,0.00028219,2]
[312156066,1705672245082,-500.0,0.00028219,2]
[312156067,1705672245093,-500.0,0.00028219,2]
[312156068,1705672245103,-2867.03,0.00028219,2]
[312156069,1705672245114,-500.0,0.00028219,2]
[312156070,1705672245124,-1359.53,0.00028219,2]
[312156072,1705672245134,-973.5,0.00028219,2]
[312156074,1705672245144,-833.35,0.00028219,2]
[312156076,1705672245154,-500.0,0.00028219,2]
[312156077,1705672245165,-532.72,0.00028219,2]
[312156079,1705672245175,-4493.31,0.00028219,2]
[312156081,1705672245186,-596.94,0.00028219,2]
[312156083,1705672245196,-817.63,0.00028219,2]
[312156085,1705672245207,-500.0,0.00028219,2]
[312156087,1705672245217,-500.0,0.00028219,2]
[312156089,1705672245227,-559.90950028,0.00028492,2]
[312156091,1705672245236,-203.57851541,0.00028492,4]
[312156093,1705672245246,-407.17228242,0.00028492,4]